[Event "MČR juniorů a juniorek v rapid šachu 2024"]
[Site "Hotel Fit Fun, Harrachov, Czech Republic"]
[Date "2024.09.21"]
[Round "4.30"]
[White "Vondra Filip"]
[Black "Fousek Petr"]
[Result "0-1"]
[TimeControl "20+5"]
[WhiteFideId "23725176"]
[BlackFideId "23736003"]
[WhiteElo "1598"]
[BlackElo "1731"]

1. e4 {[%clk 00:20:07]} c6 {[%clk 00:20:08]} {[%emt 00:00:03]} 2. d4 {[%clk
00:20:11]} {[%emt 00:00:03]} d5 {[%clk 00:20:11]} 3. Nc3 {[%clk 00:20:14]} dxe4
{[%clk 00:20:14]} {[%emt 00:00:02]} 4. Nxe4 {[%clk 00:20:18]} Nf6 {[%clk
00:20:18]} {[%emt 00:00:03]} 5. Nxf6+ {[%clk 00:20:18]} {[%emt 00:00:04]} exf6
{[%clk 00:20:21]} {[%emt 00:00:03]} 6. Nf3 {[%clk 00:20:09]} {[%emt 00:00:12]}
Bf5 {[%clk 00:20:24]} {[%emt 00:00:03]} 7. Be2 {[%clk 00:19:53]} {[%emt
00:00:21]} Bd6 {[%clk 00:20:25]} {[%emt 00:00:04]} 8. O-O {[%clk 00:19:53]}
{[%emt 00:00:05]} O-O {[%clk 00:20:26]} {[%emt 00:00:04]} 9. b3 {[%clk
00:19:50]} {[%emt 00:00:07]} Nd7 {[%clk 00:20:21]} {[%emt 00:00:10]} 10. Bb2
{[%clk 00:19:51]} {[%emt 00:00:04]} Qc7 {[%clk 00:20:10]} {[%emt 00:00:16]} 11.
h3 {[%clk 00:19:42]} {[%emt 00:00:14]} Rfe8 {[%clk 00:20:07]} {[%emt 00:00:09]}
12. Re1 {[%clk 00:19:43]} {[%emt 00:00:04]} Nf8 {[%clk 00:19:39]} {[%emt
00:00:33]} 13. d5 {[%clk 00:18:58]} {[%emt 00:00:50]} cxd5 {[%clk 00:19:22]}
{[%emt 00:00:22]} 14. Qxd5 {[%clk 00:18:44]} {[%emt 00:00:18]} Be4 {[%clk
00:19:11]} {[%emt 00:00:16]} 15. Qc4 {[%clk 00:17:05]} {[%emt 00:01:44]} Qxc4
{[%clk 00:19:03]} {[%emt 00:00:13]} 16. Bxc4 {[%clk 00:17:08]} {[%emt
00:00:02]} Bxc2 {[%clk 00:19:01]} {[%emt 00:00:07]} 17. Nd4 {[%clk 00:16:24]}
{[%emt 00:00:50]} Bg6 {[%clk 00:18:34]} {[%emt 00:00:32]} 18. Nb5 {[%clk
00:15:48]} {[%emt 00:00:40]} Bb4 {[%clk 00:17:48]} {[%emt 00:00:51]} 19. Rxe8
{[%clk 00:15:17]} {[%emt 00:00:36]} Rxe8 {[%clk 00:17:49]} {[%emt 00:00:05]} 20.
Nxa7 {[%clk 00:15:18]} {[%emt 00:00:04]} Rd8 {[%clk 00:17:29]} {[%emt
00:00:24]} 21. a3 {[%clk 00:14:07]} {[%emt 00:01:17]} Bc5 {[%clk 00:17:28]}
{[%emt 00:00:05]} 22. Bc3 {[%clk 00:13:14]} {[%emt 00:00:59]} Bxa7 {[%clk
00:17:27]} {[%emt 00:00:06]} 23. Re1 {[%clk 00:12:56]} {[%emt 00:00:22]} Bb8
{[%clk 00:16:22]} {[%emt 00:01:11]} 24. Re7 {[%clk 00:12:08]} {[%emt 00:00:52]}
Rd1+ {[%clk 00:16:24]} {[%emt 00:00:03]} 25. Re1 {[%clk 00:12:11]} {[%emt
00:00:03]} Rxe1+ {[%clk 00:16:21]} {[%emt 00:00:08]} 26. Bxe1 {[%clk 00:12:15]}
{[%emt 00:00:01]} Bd6 {[%clk 00:16:24]} {[%emt 00:00:02]} 27. b4 {[%clk
00:12:17]} {[%emt 00:00:04]} Be4 {[%clk 00:16:26]} {[%emt 00:00:02]} 28. Bd2
{[%clk 00:12:07]} {[%emt 00:00:15]} Ne6 {[%emt 00:00:03]} 29. Be3 {[%clk
00:12:04]} {[%emt 00:00:07]} Kf8 {[%clk 00:16:09]} {[%emt 00:00:25]} 30. f3
{[%clk 00:12:04]} {[%emt 00:00:05]} Bc6 {[%clk 00:16:10]} {[%emt 00:00:03]} 31.
b5 {[%clk 00:12:03]} {[%emt 00:00:07]} Bd7 {[%clk 00:16:05]} {[%emt 00:00:10]}
32. a4 {[%clk 00:12:08]} Bc5 {[%clk 00:16:07]} {[%emt 00:00:03]} 33. Kf2 {[%clk
00:12:03]} {[%emt 00:00:09]} Ke7 {[%clk 00:16:03]} {[%emt 00:00:09]} 34. Ke2
{[%emt 00:00:16]} Kd6 {[%clk 00:15:51]} {[%emt 00:00:15]} 35. Bd2 {[%clk
00:11:21]} {[%emt 00:00:38]} Nd4+ {[%clk 00:15:36]} {[%emt 00:00:21]} 36. Kd3
{[%clk 00:11:22]} {[%emt 00:00:04]} Be6 {[%clk 00:15:36]} {[%emt 00:00:04]} 37.
Bf4+ {[%clk 00:11:20]} {[%emt 00:00:07]} Kd7 {[%clk 00:15:25]} {[%emt
00:00:16]} 38. Bxe6+ {[%clk 00:10:49]} {[%emt 00:00:36]} Nxe6 {[%clk 00:15:28]}
{[%emt 00:00:03]} 39. Bg3 {[%clk 00:10:44]} {[%emt 00:00:09]} Bd6 {[%clk
00:15:24]} {[%emt 00:00:09]} 40. Bf2 {[%clk 00:10:31]} {[%emt 00:00:18]} Nc5+
{[%clk 00:15:27]} {[%emt 00:00:02]} 41. Bxc5 {[%clk 00:10:31]} {[%emt
00:00:06]} Bxc5 {[%clk 00:15:30]} {[%emt 00:00:02]} 42. Kc4 {[%clk 00:10:35]}
b6 {[%clk 00:15:31]} {[%emt 00:00:05]} 43. a5 {[%clk 00:10:34]} {[%emt
00:00:06]} Kd6 {[%clk 00:15:34]} {[%emt 00:00:02]} 44. a6 {[%clk 00:10:31]}
{[%emt 00:00:07]} Kc7 {[%clk 00:15:32]} {[%emt 00:00:07]} 45. Kd5 {[%clk
00:10:23]} {[%emt 00:00:13]} Bd6 {[%clk 00:15:27]} {[%emt 00:00:10]} 46. Kc4
{[%clk 00:10:04]} {[%emt 00:00:24]} h5 {[%clk 00:15:24]} {[%emt 00:00:08]} 47.
Kd5 {[%clk 00:10:05]} {[%emt 00:00:05]} f5 {[%clk 00:15:21]} {[%emt 00:00:07]}
48. Kd4 {[%clk 00:10:01]} {[%emt 00:00:10]} g5 {[%clk 00:15:07]} {[%emt
00:00:19]} 49. Kd5 {[%clk 00:09:31]} {[%emt 00:00:35]} g4 {[%clk 00:14:44]}
{[%emt 00:00:27]} 50. Kd4 {[%clk 00:08:10]} {[%emt 00:01:26]} Kc8 {[%clk
00:14:25]} {[%emt 00:00:25]} 51. Kd5 {[%clk 00:07:05]} {[%emt 00:01:10]} Bb8
{[%clk 00:14:28]} {[%emt 00:00:01]} 52. Kc6 {[%clk 00:07:09]} {[%emt 00:00:01]}
Ba7 {[%clk 00:14:32]} {[%emt 00:00:02]} 53. Kd6 {[%clk 00:07:10]} {[%emt
00:00:04]} g3 {[%clk 00:14:17]} {[%emt 00:00:19]} 54. Ke5 {[%clk 00:07:04]}
{[%emt 00:00:11]} Kd7 {[%clk 00:14:12]} {[%emt 00:00:10]} 55. Kd5 {[%clk
00:06:44]} {[%emt 00:00:24]} f6 {[%clk 00:14:14]} {[%emt 00:00:03]} 56. Kc4
{[%clk 00:06:31]} {[%emt 00:00:19]} Ke6 {[%clk 00:14:12]} {[%emt 00:00:07]} 57.
Kd4 {[%clk 00:06:34]} {[%emt 00:00:01]} Kd6 {[%clk 00:14:06]} {[%emt 00:00:12]}
58. f4 {[%clk 00:06:09]} {[%emt 00:00:30]} h4 {[%clk 00:13:52]} {[%emt
00:00:19]} 59. Kc4 {[%clk 00:06:03]} {[%emt 00:00:11]} Bb8 {[%clk 00:13:45]}
{[%emt 00:00:12]} 60. Kd4 {[%clk 00:06:07]} {[%emt 00:00:01]} Kd7 {[%clk
00:13:21]} {[%emt 00:00:29]} 61. Kd5 {[%clk 00:06:02]} {[%emt 00:00:10]} Kc8
{[%clk 00:12:20]} {[%emt 00:01:05]} 62. Kc6 {[%clk 00:05:55]} {[%emt 00:00:13]}
Ba7 {[%clk 00:12:07]} {[%emt 00:00:17]} 63. Kd6 {[%clk 00:05:41]} {[%emt
00:00:19]} Kb8 {[%clk 00:12:01]} {[%emt 00:00:12]} 64. Ke6 {[%clk 00:05:35]}
{[%emt 00:00:10]} Kc7 {[%clk 00:12:03]} {[%emt 00:00:03]} 65. Kxf6 {[%clk
00:04:22]} {[%emt 00:01:18]} Kd6 {[%clk 00:12:07]} {[%emt 00:00:01]} 66. Kxf5
{[%clk 00:04:26]} {[%emt 00:00:02]} Kc5 {[%clk 00:12:11]} {[%emt 00:00:01]} 67.
Ke6 {[%clk 00:04:30]} Kxb5 {[%clk 00:12:15]} {[%emt 00:00:01]} 68. f5 {[%clk
00:04:34]} Kxa6 {[%clk 00:12:10]} {[%emt 00:00:09]} 69. f6 {[%clk 00:04:37]}
{[%emt 00:00:02]} b5 {[%clk 00:12:15]} {[%emt 00:00:01]} 70. Kd5 {[%clk
00:04:27]} {[%emt 00:00:15]} Be3 {[%clk 00:12:14]} {[%emt 00:00:05]} 71. f7
{[%clk 00:04:26]} {[%emt 00:00:07]} Bh6 {[%clk 00:12:17]} {[%emt 00:00:02]} 72.
Kc5 {[%clk 00:04:17]} {[%emt 00:00:14]} Ka5 {[%clk 00:12:21]} 73. Kd4 {[%clk
00:04:17]} {[%emt 00:00:05]} Kb4 {[%clk 00:12:24]} {[%emt 00:00:02]} 74. Kd3
{[%clk 00:04:20]} {[%emt 00:00:02]} Kb3 {[%clk 00:12:28]} {[%emt 00:00:01]} 75.
Ke4 {[%clk 00:03:44]} {[%emt 00:00:41]} Kc3 {[%clk 00:12:09]} {[%emt 00:00:24]}
76. Kf5 {[%clk 00:03:47]} {[%emt 00:00:02]} Bf8 {[%clk 00:12:12]} {[%emt
00:00:01]} 77. Kg5 {[%clk 00:03:49]} {[%emt 00:00:03]} Be7+ {[%clk 00:12:16]}
{[%emt 00:00:02]} 78. Kg6 {[%clk 00:03:38]} {[%emt 00:00:15]} b4 {[%clk
00:12:18]} {[%emt 00:00:04]} 79. Kh5 {[%clk 00:03:20]} {[%emt 00:00:23]} b3
{[%clk 00:12:20]} {[%emt 00:00:03]} 80. f8=Q {[%clk 00:03:22]} {[%emt
00:00:02]} Bxf8 {[%clk 00:12:23]} 81. Kxh4 {[%clk 00:03:27]} Bd6 {[%clk
00:12:23]} {[%emt 00:00:05]} 82. Kg5 {[%clk 00:03:27]} {[%emt 00:00:04]} b2
{[%clk 00:12:27]} {[%emt 00:00:02]} 83. h4 {[%clk 00:03:32]} b1=Q {[%clk
00:12:29]} {[%emt 00:00:04]} 84. h5 {[%clk 00:03:36]} Qe4 {[%clk 00:12:19]}
{[%emt 00:00:13]} 85. h6 {[%clk 00:03:38]} {[%emt 00:00:05]} Be7+ {[%clk
00:12:18]} {[%emt 00:00:05]} 86. Kh5 {[%clk 00:03:36]} {[%emt 00:00:06]} Qf5#
{[%clk 00:12:22]} {[%emt 00:00:02]} 0-1



[ePGN "0.1;DGT LiveChess/2.2.6"]

[Event "MČR juniorů a juniorek v rapid šachu 2024"]
[Site "Hotel Fit Fun, Harrachov, Czech Republic"]
[Date "2024.09.21"]
[Round "4.31"]
[White "Boff Vojtech"]
[Black "Lebeda Frantisek Jiri"]
[Result "0-1"]
[TimeControl "20+5"]
[WhiteFideId "23733969"]
[WhiteElo "1719"]
[BlackElo "1000"]

1. d4 {[%clk 00:20:09]} {[%emt 00:04:22]} Nf6 {[%clk 00:20:08]} {[%emt
00:00:02]} 2. Nf3 {[%clk 00:20:12]} {[%emt 00:00:02]} d5 {[%clk 00:20:11]}
{[%emt 00:00:03]} 3. c4 {[%clk 00:20:16]} e6 {[%clk 00:20:14]} {[%emt
00:00:02]} 4. Nc3 {[%clk 00:20:18]} {[%emt 00:00:02]} c6 {[%clk 00:20:11]}
{[%emt 00:00:10]} 5. cxd5 {[%clk 00:20:21]} exd5 {[%clk 00:20:13]} {[%emt
00:00:04]} 6. Bg5 {[%clk 00:20:24]} {[%emt 00:00:02]} Be7 {[%clk 00:20:15]}
{[%emt 00:00:01]} 7. e3 {[%clk 00:20:28]} Be6 {[%clk 00:20:12]} {[%emt
00:00:09]} 8. Bd3 {[%clk 00:20:14]} {[%emt 00:00:19]} Nbd7 {[%clk 00:20:12]}
{[%emt 00:00:03]} 9. O-O {[%clk 00:20:09]} {[%emt 00:00:12]} O-O {[%clk
00:20:14]} {[%emt 00:00:04]} 10. Rc1 {[%clk 00:20:08]} {[%emt 00:00:06]} h6
{[%clk 00:20:15]} {[%emt 00:00:04]} 11. Bh4 {[%clk 00:20:02]} {[%emt 00:00:10]}
Re8 {[%clk 00:19:47]} {[%emt 00:00:33]} 12. Qb3 {[%clk 00:19:52]} {[%emt
00:00:16]} Qb6 {[%clk 00:18:55]} {[%emt 00:00:57]} 13. Qc2 {[%clk 00:19:18]}
{[%emt 00:00:39]} Bg4 {[%clk 00:18:41]} {[%emt 00:00:19]} 14. Be2 {[%clk
00:19:19]} {[%emt 00:00:04]} Bb4 {[%clk 00:18:09]} {[%emt 00:00:37]} 15. a3
{[%clk 00:19:11]} {[%emt 00:00:14]} Bxc3 {[%clk 00:18:02]} {[%emt 00:00:11]} 16.
Qxc3 {[%clk 00:19:12]} {[%emt 00:00:03]} Ne4 {[%clk 00:17:51]} {[%emt
00:00:16]} 17. Qc2 {[%clk 00:19:01]} {[%emt 00:00:17]} Re6 {[%clk 00:16:51]}
{[%emt 00:01:05]} 18. Rfe1 {[%clk 00:18:20]} {[%emt 00:00:45]} Rae8 {[%clk
00:16:22]} {[%emt 00:00:34]} 19. Nd2 {[%clk 00:18:19]} {[%emt 00:00:08]} Bxe2
{[%clk 00:16:13]} {[%emt 00:00:13]} 20. Rxe2 {[%clk 00:18:22]} {[%emt
00:00:01]} Ndf6 {[%clk 00:16:11]} {[%emt 00:00:08]} 21. Bxf6 {[%clk 00:18:21]}
{[%emt 00:00:06]} Rxf6 {[%clk 00:16:02]} {[%emt 00:00:14]} 22. Nxe4 {[%clk
00:18:24]} {[%emt 00:00:02]} Rxe4 {[%clk 00:16:02]} {[%emt 00:00:06]} 23. Qc5
{[%clk 00:18:10]} {[%emt 00:00:17]} Qxc5 {[%clk 00:15:14]} {[%emt 00:00:54]} 24.
Rxc5 {[%clk 00:18:09]} {[%emt 00:00:05]} Rfe6 {[%clk 00:15:10]} {[%emt
00:00:08]} 25. Kf1 {[%clk 00:17:43]} {[%emt 00:00:32]} Kf8 {[%clk 00:14:59]}
{[%emt 00:00:17]} 26. Rc3 {[%clk 00:17:46]} {[%emt 00:00:02]} Ke7 {[%clk
00:14:54]} {[%emt 00:00:09]} 27. g3 {[%clk 00:17:41]} {[%emt 00:00:11]} Rg4
{[%clk 00:14:51]} {[%emt 00:00:06]} 28. Rec2 {[%clk 00:17:23]} {[%emt
00:00:24]} Kd6 {[%clk 00:14:51]} {[%emt 00:00:06]} 29. Rb3 {[%clk 00:17:26]}
{[%emt 00:00:02]} Re7 {[%clk 00:14:44]} {[%emt 00:00:12]} 30. Rbc3 {[%clk
00:16:55]} {[%emt 00:00:36]} h5 {[%clk 00:14:35]} {[%emt 00:00:14]} 31. Rc5
{[%clk 00:16:55]} {[%emt 00:00:04]} h4 {[%clk 00:14:22]} {[%emt 00:00:19]} 32.
Kg2 {[%clk 00:16:45]} {[%emt 00:00:14]} hxg3 {[%clk 00:14:15]} {[%emt
00:00:13]} 33. hxg3 {[%clk 00:16:49]} {[%emt 00:00:01]} f5 {[%clk 00:14:01]}
{[%emt 00:00:18]} 34. Kf3 {[%clk 00:16:41]} {[%emt 00:00:13]} Rg6 {[%clk
00:13:59]} {[%emt 00:00:07]} 35. Ra5 {[%clk 00:16:41]} {[%emt 00:00:06]} b6
{[%clk 00:13:58]} {[%emt 00:00:06]} 36. Ra4 {[%clk 00:16:45]} {[%emt 00:00:01]}
Rf6 {[%clk 00:13:27]} {[%emt 00:00:35]} 37. Rb4 {[%clk 00:16:41]} {[%emt
00:00:10]} g5 {[%clk 00:13:16]} {[%emt 00:00:16]} 38. Rb3 {[%clk 00:16:41]}
{[%emt 00:00:05]} Ref7 {[%clk 00:13:02]} {[%emt 00:00:17]} 39. Rbc3 {[%clk
00:16:45]} {[%emt 00:00:03]} Kd7 {[%clk 00:13:01]} {[%emt 00:00:07]} 40. Ke2
{[%clk 00:16:40]} {[%emt 00:00:09]} f4 {[%clk 00:13:02]} {[%emt 00:00:03]} 41.
gxf4 {[%clk 00:16:43]} {[%emt 00:00:02]} gxf4 {[%clk 00:13:07]} 42. Kd3 {[%clk
00:16:15]} {[%emt 00:00:33]} fxe3 {[%clk 00:13:04]} {[%emt 00:00:08]} 43. fxe3
{[%clk 00:16:18]} Kc7 {[%clk 00:12:50]} {[%emt 00:00:19]} 44. Rh2 {[%clk
00:16:12]} {[%emt 00:00:10]} Rf2 {[%clk 00:12:46]} {[%emt 00:00:10]} 45. Rc2
{[%clk 00:16:16]} {[%emt 00:00:01]} Rxc2 {[%clk 00:12:46]} {[%emt 00:00:05]} 46.
Kxc2 {[%clk 00:16:18]} {[%emt 00:00:03]} Kd6 {[%clk 00:12:37]} {[%emt
00:00:14]} 47. Kd3 {[%clk 00:16:21]} {[%emt 00:00:01]} Rf1 {[%clk 00:12:24]}
{[%emt 00:00:18]} 48. Rh6+ {[%clk 00:16:19]} {[%emt 00:00:07]} Kc7 {[%clk
00:12:27]} {[%emt 00:00:03]} 49. Rh7+ {[%clk 00:16:21]} {[%emt 00:00:03]} Kb8
{[%clk 00:12:30]} {[%emt 00:00:02]} 50. Re7 {[%clk 00:16:13]} {[%emt 00:00:12]}
Rb1 {[%clk 00:12:29]} {[%emt 00:00:06]} 51. Kc2 {[%clk 00:16:16]} {[%emt
00:00:02]} Re1 {[%clk 00:12:32]} {[%emt 00:00:03]} 52. b4 {[%clk 00:15:53]}
{[%emt 00:00:28]} Re2+ {[%clk 00:12:29]} {[%emt 00:00:08]} 53. Kc3 {[%clk
00:15:55]} {[%emt 00:00:03]} Re1 {[%clk 00:12:31]} {[%emt 00:00:03]} 54. Kb3
{[%clk 00:15:49]} {[%emt 00:00:11]} Rb1+ {[%clk 00:12:31]} {[%emt 00:00:05]} 55.
Kc2 {[%clk 00:15:50]} {[%emt 00:00:03]} Ra1 {[%clk 00:12:34]} {[%emt 00:00:02]}
56. Kb2 {[%clk 00:15:52]} {[%emt 00:00:03]} Re1 {[%clk 00:12:37]} {[%emt
00:00:02]} 57. a4 {[%clk 00:15:53]} {[%emt 00:00:05]} a6 {[%clk 00:12:23]}
{[%emt 00:00:19]} 58. Kc3 {[%clk 00:15:42]} {[%emt 00:00:16]} Rc1+ {[%clk
00:12:27]} {[%emt 00:00:02]} 59. Kb3 {[%clk 00:15:41]} {[%emt 00:00:05]} Rb1+
{[%clk 00:12:30]} {[%emt 00:00:02]} 60. Kc3 {[%emt 00:00:05]} Rc1+ {[%clk
00:12:30]} {[%emt 00:00:01]} 61. Kb2 {[%clk 00:15:48]} {[%emt 00:00:02]} Rc4
{[%clk 00:12:31]} {[%emt 00:00:04]} 62. Kb3 {[%clk 00:15:47]} {[%emt 00:00:06]}
Rc1 {[%clk 00:12:34]} {[%emt 00:00:02]} 63. e4 {[%clk 00:15:39]} {[%emt
00:00:13]} dxe4 {[%clk 00:12:29]} {[%emt 00:00:10]} 64. Rxe4 {[%clk 00:15:42]}
{[%emt 00:00:02]} Kc7 {[%clk 00:12:31]} {[%emt 00:00:02]} 65. Rh4 {[%clk
00:15:41]} {[%emt 00:00:06]} Rb1+ {[%clk 00:12:35]} {[%emt 00:00:02]} 66. Kc3
{[%clk 00:15:44]} {[%emt 00:00:02]} Rc1+ {[%clk 00:12:36]} {[%emt 00:00:04]} 67.
Kb2 {[%clk 00:15:48]} {[%emt 00:00:01]} Rc4 {[%clk 00:12:39]} {[%emt 00:00:03]}
68. Kb3 {[%clk 00:15:50]} {[%emt 00:00:02]} Rc1 {[%clk 00:12:41]} {[%emt
00:00:03]} 69. Rh7+ {[%clk 00:15:51]} {[%emt 00:00:03]} Kb8 {[%clk 00:12:28]}
{[%emt 00:00:19]} 70. Rh2 {[%clk 00:15:41]} {[%emt 00:00:15]} Rb1+ {[%clk
00:12:29]} {[%emt 00:00:04]} 71. Kc3 {[%clk 00:15:23]} {[%emt 00:00:23]} Rc1+
{[%clk 00:12:30]} {[%emt 00:00:05]} 72. Rc2 {[%clk 00:15:24]} {[%emt 00:00:02]}
Rxc2+ {[%clk 00:12:29]} {[%emt 00:00:06]} 73. Kxc2 {[%clk 00:15:29]} Kc7 {[%clk
00:12:31]} {[%emt 00:00:04]} 74. Kd3 {[%clk 00:15:32]} {[%emt 00:00:01]} b5
{[%clk 00:12:33]} {[%emt 00:00:03]} 75. a5 {[%clk 00:15:31]} {[%emt 00:00:06]}
Kd6 {[%clk 00:12:36]} {[%emt 00:00:02]} 76. Ke4 {[%clk 00:15:34]} {[%emt
00:00:02]} Ke6 {[%clk 00:12:41]} 77. Kf4 {[%clk 00:15:38]} {[%emt 00:00:01]}
Kd5 {[%clk 00:12:44]} {[%emt 00:00:01]} 78. Ke3 {[%clk 00:15:39]} {[%emt
00:00:04]} Kc4 {[%clk 00:12:47]} 79. Ke4 {[%clk 00:15:43]} {[%emt 00:00:03]}
Kxb4 {[%clk 00:12:49]} {[%emt 00:00:04]} 80. Kd3 {[%clk 00:15:46]} {[%emt
00:00:01]} Kxa5 {[%clk 00:12:52]} {[%emt 00:00:02]} 81. Kc3 {[%clk 00:15:51]}
Kb6 {[%emt 00:00:11]} 0-1



[ePGN "0.1;DGT LiveChess/2.2.6"]

[Event "MČR juniorů a juniorek v rapid šachu 2024"]
[Site "Hotel Fit Fun, Harrachov, Czech Republic"]
[Date "2024.09.21"]
[Round "4.32"]
[White "Hyam Robin"]
[Black "Tichy Richard"]
[Result "1-0"]
[TimeControl "20+5"]
[WhiteFideId "23773413"]
[BlackFideId "23727063"]
[WhiteElo "1571"]
[BlackElo "1698"]

1. e4 {[%clk 00:20:03]} {[%emt 00:00:07]} e5 {[%clk 00:20:08]} {[%emt
00:00:03]} 2. Nc3 {[%clk 00:20:07]} {[%emt 00:00:01]} Nf6 {[%clk 00:20:11]}
{[%emt 00:00:03]} 3. f4 {[%clk 00:20:11]} exf4 {[%emt 00:00:03]} 4. e5 Qe7
{[%clk 00:20:08]} {[%emt 00:00:10]} 5. Qe2 {[%clk 00:20:18]} {[%emt 00:00:01]}
f3 6. Nxf3 {[%clk 00:20:22]} Ng4 {[%clk 00:19:55]} {[%emt 00:00:05]} 7. d4
{[%clk 00:20:19]} {[%emt 00:00:08]} d5 {[%clk 00:19:52]} {[%emt 00:00:07]} 8.
Nxd5 {[%clk 00:19:55]} {[%emt 00:00:29]} Qd8 {[%clk 00:19:42]} {[%emt
00:00:16]} 9. Nc3 {[%clk 00:19:26]} {[%emt 00:00:33]} Bb4 {[%clk 00:19:44]}
{[%emt 00:00:04]} 10. h3 {[%clk 00:19:27]} {[%emt 00:00:02]} Nh6 {[%clk
00:19:34]} {[%emt 00:00:16]} 11. Bxh6 {[%clk 00:19:23]} {[%emt 00:00:08]} gxh6
{[%clk 00:19:38]} {[%emt 00:00:02]} 12. Qe3 {[%clk 00:18:46]} {[%emt 00:00:42]}
h5 {[%clk 00:18:42]} {[%emt 00:01:01]} 13. a3 {[%clk 00:18:34]} {[%emt
00:00:17]} Bxc3+ {[%clk 00:18:31]} {[%emt 00:00:16]} 14. bxc3 {[%clk 00:18:36]}
{[%emt 00:00:03]} Bf5 {[%clk 00:18:26]} {[%emt 00:00:10]} 15. Bd3 {[%clk
00:17:57]} {[%emt 00:00:43]} Bg6 {[%clk 00:17:55]} {[%emt 00:00:36]} 16. O-O
{[%clk 00:17:46]} {[%emt 00:00:16]} Nc6 {[%clk 00:17:36]} {[%emt 00:00:25]} 17.
Rab1 {[%clk 00:17:20]} {[%emt 00:00:31]} Na5 {[%clk 00:17:19]} {[%emt
00:00:21]} 18. Rbe1 {[%clk 00:16:46]} {[%emt 00:00:38]} Qe7 {[%clk 00:17:13]}
{[%emt 00:00:12]} 19. e6 {[%clk 00:15:40]} {[%emt 00:01:11]} Bxd3 {[%clk
00:16:14]} {[%emt 00:01:04]} 20. exf7+ {[%clk 00:15:37]} {[%emt 00:00:07]} Kxf7
{[%clk 00:16:10]} {[%emt 00:00:10]} 21. Qxe7+ {[%clk 00:15:38]} {[%emt
00:00:03]} Kg6 {[%clk 00:16:10]} {[%emt 00:00:05]} 22. Ne5+ {[%clk 00:15:42]}
{[%emt 00:00:02]} Kh6 {[%clk 00:15:59]} {[%emt 00:00:16]} 23. Qf6+ {[%clk
00:15:46]} Bg6 {[%clk 00:15:56]} {[%emt 00:00:08]} 24. Nf7# {[%clk 00:15:48]}
{[%emt 00:00:02]} 1-0



[ePGN "0.1;DGT LiveChess/2.2.6"]

[Event "MČR juniorů a juniorek v rapid šachu 2024"]
[Site "Hotel Fit Fun, Harrachov, Czech Republic"]
[Date "2024.09.21"]
[Round "4.33"]
[White "Plzak David"]
[Black "Musil Tomas"]
[Result "1-0"]
[TimeControl "20+5"]
[WhiteFideId "23776234"]
[BlackFideId "23762888"]
[WhiteElo "1625"]
[BlackElo "1519"]

1. e4 {[%clk 00:20:08]} {[%emt 01:23:14]} e6 {[%clk 00:20:09]} {[%emt
00:00:01]} 2. d4 {[%clk 00:20:11]} {[%emt 00:00:02]} d5 {[%clk 00:19:54]}
{[%emt 00:00:20]} 3. Nd2 {[%clk 00:20:15]} {[%emt 00:00:01]} c5 {[%clk
00:19:55]} {[%emt 00:00:05]} 4. exd5 {[%clk 00:20:17]} {[%emt 00:00:02]} exd5
{[%clk 00:19:57]} {[%emt 00:00:04]} 5. Ngf3 {[%clk 00:20:13]} {[%emt 00:00:09]}
Nc6 {[%clk 00:19:55]} {[%emt 00:00:06]} 6. Be2 {[%clk 00:19:58]} {[%emt
00:00:20]} Nf6 {[%clk 00:19:56]} {[%emt 00:00:04]} 7. O-O {[%clk 00:19:36]}
{[%emt 00:00:28]} Be7 {[%clk 00:19:47]} {[%emt 00:00:13]} 8. dxc5 Bxc5 {[%clk
00:19:51]} 9. Nb3 {[%clk 00:19:25]} {[%emt 00:00:07]} Be7 {[%clk 00:19:20]}
{[%emt 00:00:37]} 10. h3 {[%clk 00:19:02]} {[%emt 00:00:27]} O-O {[%clk
00:19:21]} {[%emt 00:00:03]} 11. Bg5 {[%clk 00:19:05]} {[%emt 00:00:03]} h6
{[%clk 00:19:15]} {[%emt 00:00:11]} 12. Bh4 {[%clk 00:19:02]} {[%emt 00:00:08]}
Re8 {[%clk 00:19:01]} {[%emt 00:00:19]} 13. Re1 {[%clk 00:18:45]} {[%emt
00:00:22]} Be6 {[%clk 00:17:22]} {[%emt 00:01:44]} 14. c3 {[%clk 00:18:12]}
{[%emt 00:00:38]} Qd7 {[%clk 00:16:09]} {[%emt 00:01:18]} 15. Nfd4 {[%clk
00:16:43]} {[%emt 00:01:35]} Nxd4 {[%clk 00:15:05]} {[%emt 00:01:09]} 16. Nxd4
{[%clk 00:16:44]} {[%emt 00:00:04]} Ne4 {[%clk 00:14:32]} {[%emt 00:00:37]} 17.
Bb5 {[%clk 00:16:25]} {[%emt 00:00:25]} Qd6 {[%clk 00:12:59]} {[%emt 00:01:37]}
18. Bxe7 {[%clk 00:14:49]} {[%emt 00:01:41]} Rxe7 {[%clk 00:12:55]} {[%emt
00:00:10]} 19. Bd3 {[%clk 00:13:59]} {[%emt 00:00:55]} Nf6 {[%clk 00:10:26]}
{[%emt 00:02:33]} 20. Qf3 {[%clk 00:13:10]} {[%emt 00:00:53]} Rae8 {[%clk
00:10:09]} {[%emt 00:00:23]} 21. Re3 {[%clk 00:12:02]} {[%emt 00:01:14]} Bd7
{[%clk 00:08:42]} {[%emt 00:01:31]} 22. Rae1 {[%clk 00:11:43]} {[%emt
00:00:24]} Rxe3 {[%clk 00:06:33]} {[%emt 00:02:15]} 23. Rxe3 {[%clk 00:11:44]}
{[%emt 00:00:04]} Rxe3 {[%clk 00:05:29]} {[%emt 00:01:09]} 24. Qxe3 {[%clk
00:11:42]} {[%emt 00:00:06]} a6 {[%clk 00:04:14]} {[%emt 00:01:21]} 25. Bf5
{[%clk 00:09:51]} {[%emt 00:01:55]} Bxf5 {[%clk 00:03:03]} {[%emt 00:01:15]} 26.
Nxf5 {[%clk 00:09:55]} {[%emt 00:00:02]} Qd7 {[%clk 00:02:38]} {[%emt
00:00:30]} 27. Ng3 {[%clk 00:08:47]} {[%emt 00:01:13]} b5 {[%clk 00:01:56]}
{[%emt 00:00:47]} 28. Qb6 {[%clk 00:07:52]} {[%emt 00:00:59]} d4 {[%clk
00:00:56]} {[%emt 00:01:06]} 29. cxd4 {[%clk 00:06:31]} {[%emt 00:01:26]} Nd5
{[%clk 00:00:58]} {[%emt 00:00:03]} 30. Qxa6 {[%clk 00:06:02]} {[%emt
00:00:35]} Nb4 {[%clk 00:00:55]} {[%emt 00:00:08]} 31. Qa8+ {[%clk 00:05:41]}
{[%emt 00:00:26]} Kh7 {[%clk 00:00:58]} {[%emt 00:00:02]} 32. Qe4+ {[%clk
00:05:44]} {[%emt 00:00:01]} Kg8 {[%clk 00:01:01]} {[%emt 00:00:03]} 33. a3
{[%clk 00:05:29]} {[%emt 00:00:20]} Nc6 {[%clk 00:01:04]} {[%emt 00:00:01]} 34.
d5 {[%clk 00:05:17]} {[%emt 00:00:18]} Ne7 {[%clk 00:00:38]} {[%emt 00:00:31]}
35. Qe5 {[%clk 00:03:44]} {[%emt 00:01:37]} Nxd5 {[%clk 00:00:14]} {[%emt
00:00:29]} 36. Ne4 {[%clk 00:03:08]} {[%emt 00:00:40]} 1-0



[ePGN "0.1;DGT LiveChess/2.2.6"]